[Event "*** Titled Tuesday Blitz"]
[Site "Chess.com"]
[Date "2020.10.27"]
[Round "2"]
[White "chesstrainer2042"]
[Black "TioCridineno"]
[Result "0-1"]
[WhiteElo "2431"]
[BlackElo "2230"]
[TimeControl "180+1"]
[EndTime "10:18:19 PDT"]
[Termination "TioCridineno won by resignation"]

1. e4 {[%clk 0:03:00.9]} 1... c5 {[%clk 0:02:58]} 2. Nc3 {[%clk 0:03:00.7]} 2...
a6 {[%clk 0:02:57.3]} 3. Nf3 {[%clk 0:02:58.5]} 3... d6 {[%clk 0:02:55.8]} 4. d4
{[%clk 0:02:56.2]} 4... cxd4 {[%clk 0:02:55.9]} 5. Nxd4 {[%clk 0:02:56.4]} 5...
Nf6 {[%clk 0:02:56.3]} 6. Bd3 {[%clk 0:02:55.3]} 6... e5 {[%clk 0:02:54.2]} 7.
Nde2 {[%clk 0:02:55.1]} 7... Be7 {[%clk 0:02:48.8]} 8. Ng3 {[%clk 0:02:54.8]}
8... h5 {[%clk 0:02:46.3]} 9. O-O {[%clk 0:02:43]} 9... h4 {[%clk 0:02:44.8]}
10. Nge2 {[%clk 0:02:43.2]} 10... Be6 {[%clk 0:02:43.6]} 11. h3 {[%clk
0:02:41.3]} 11... Qc7 {[%clk 0:02:43.3]} 12. f4 {[%clk 0:02:41.4]} 12... b5
{[%clk 0:02:42.4]} 13. f5 {[%clk 0:02:39.3]} 13... Bc4 {[%clk 0:02:35.7]} 14.
Bg5 {[%clk 0:02:31.5]} 14... Nbd7 {[%clk 0:02:34.9]} 15. a4 {[%clk 0:02:30.6]}
15... b4 {[%clk 0:02:32.8]} 16. Nb1 {[%clk 0:02:28.3]} 16... Rc8 {[%clk
0:02:28.2]} 17. Nd2 {[%clk 0:02:23.9]} 17... Bxd3 {[%clk 0:02:18.9]} 18. cxd3
{[%clk 0:02:24]} 18... Nh5 {[%clk 0:02:12.1]} 19. Be3 {[%clk 0:02:14.4]} 19...
Nc5 {[%clk 0:01:59.5]} 20. Rc1 {[%clk 0:02:12.5]} 20... Qb7 {[%clk 0:01:54.2]}
21. Bxc5 {[%clk 0:02:11.3]} 21... dxc5 {[%clk 0:01:50.9]} 22. Nf3 {[%clk
0:02:09.6]} 22... Bf6 {[%clk 0:01:40.3]} 23. Qd2 {[%clk 0:02:03.4]} 23... Ke7
{[%clk 0:01:27.1]} 24. Qe3 {[%clk 0:01:59.2]} 24... Qb6 {[%clk 0:01:17.4]} 25.
Nd2 {[%clk 0:01:55]} 25... Nf4 {[%clk 0:01:00]} 26. Nc4 {[%clk 0:01:53.9]} 26...
Qc7 {[%clk 0:00:58]} 27. Qf3 {[%clk 0:01:43.8]} 27... Nxe2+ {[%clk 0:00:54.3]}
28. Qxe2 {[%clk 0:01:43.5]} 28... Rhd8 {[%clk 0:00:53.2]} 29. Rcd1 {[%clk
0:01:41]} 29... Rd4 {[%clk 0:00:52.2]} 30. Ne3 {[%clk 0:01:36.1]} 30... Qd6
{[%clk 0:00:45.9]} 31. b3 {[%clk 0:01:29.4]} 31... Bg5 {[%clk 0:00:35.5]} 32.
Nd5+ {[%clk 0:01:26.5]} 32... Kf8 {[%clk 0:00:26]} 33. Qh5 {[%clk 0:01:17.9]}
33... Qh6 {[%clk 0:00:23.2]} 34. Qg4 {[%clk 0:01:15.3]} 34... f6 {[%clk
0:00:21.6]} 35. Kh1 {[%clk 0:01:13.4]} 35... Kf7 {[%clk 0:00:19.9]} 36. Rf2
{[%clk 0:01:12.9]} 36... Qh8 {[%clk 0:00:19.5]} 37. Rc2 {[%clk 0:01:12.7]} 37...
a5 {[%clk 0:00:17.9]} 38. Qf3 {[%clk 0:01:07.5]} 38... Qd8 {[%clk 0:00:15.5]}
39. Rc4 {[%clk 0:01:07.2]} 39... Qd6 {[%clk 0:00:14.9]} 40. Rf1 {[%clk
0:01:04.6]} 40... Kg8 {[%clk 0:00:15.1]} 41. Rf2 {[%clk 0:01:04.6]} 41... Rd8
{[%clk 0:00:14.9]} 42. Rfc2 {[%clk 0:01:04.3]} 42... Rc8 {[%clk 0:00:14.8]} 43.
Rxd4 {[%clk 0:00:58.9]} 43... exd4 {[%clk 0:00:12.7]} 44. Qh5 {[%clk 0:00:57.8]}
44... Be3 {[%clk 0:00:11.8]} 45. Qg6 {[%clk 0:00:56.4]} 45... Qg3 {[%clk
0:00:11.3]} 46. Qxg3 {[%clk 0:00:55.2]} 46... hxg3 {[%clk 0:00:11.9]} 47. Nxe3
{[%clk 0:00:54.2]} 47... dxe3 {[%clk 0:00:12]} 48. Re2 {[%clk 0:00:52]} 48... c4
{[%clk 0:00:12.5]} 49. dxc4 {[%clk 0:00:50.6]} 49... Rd8 {[%clk 0:00:12.8]} 50.
Re1 {[%clk 0:00:47.3]} 50... e2 {[%clk 0:00:12.4]} 51. c5 {[%clk 0:00:43.6]}
51... Rd1 {[%clk 0:00:12.8]} 52. Rg1 {[%clk 0:00:41.5]} 52... Rxg1+ {[%clk
0:00:12.3]} 0-1

[Event "*** Titled Tuesday Blitz"]
[Site "Chess.com"]
[Date "2020.10.27"]
[Round "2"]
[White "Sergienko_Sergey"]
[Black "Joshukid"]
[Result "0-1"]
[WhiteElo "2345"]
[BlackElo "2685"]
[TimeControl "180+1"]
[EndTime "10:18:22 PDT"]
[Termination "Joshukid won on time"]

1. e4 {[%clk 0:02:57.5]} 1... g6 {[%clk 0:02:53.5]} 2. d4 {[%clk 0:02:56.4]}
2... Bg7 {[%clk 0:02:53.1]} 3. Nc3 {[%clk 0:02:55.4]} 3... d5 {[%clk 0:02:52.6]}
4. exd5 {[%clk 0:02:45.9]} 4... Nf6 {[%clk 0:02:52.8]} 5. Bb5+ {[%clk
0:02:40.5]} 5... Nbd7 {[%clk 0:02:49.2]} 6. Nf3 {[%clk 0:02:37]} 6... O-O {[%clk
0:02:44.1]} 7. O-O {[%clk 0:02:35.8]} 7... Nb6 {[%clk 0:02:44.1]} 8. Re1 {[%clk
0:02:27.5]} 8... Nbxd5 {[%clk 0:02:38.4]} 9. Nxd5 {[%clk 0:02:26.2]} 9... Nxd5
{[%clk 0:02:38.5]} 10. h3 {[%clk 0:02:20.7]} 10... a6 {[%clk 0:02:27.9]} 11. Bf1
{[%clk 0:02:19.7]} 11... b5 {[%clk 0:02:27.4]} 12. c3 {[%clk 0:02:11.3]} 12...
Bb7 {[%clk 0:02:27.9]} 13. Bg5 {[%clk 0:02:04.9]} 13... Qd6 {[%clk 0:02:22.6]}
14. Qd2 {[%clk 0:02:00.3]} 14... Rfe8 {[%clk 0:02:22]} 15. Bh6 {[%clk
0:01:54.6]} 15... Rad8 {[%clk 0:02:14.7]} 16. Bxg7 {[%clk 0:01:52.1]} 16... Kxg7
{[%clk 0:02:15.6]} 17. Rad1 {[%clk 0:01:48.6]} 17... e6 {[%clk 0:02:03.4]} 18.
Ne5 {[%clk 0:01:43]} 18... c5 {[%clk 0:02:02.8]} 19. dxc5 {[%clk 0:01:24]} 19...
Qxc5 {[%clk 0:02:03.7]} 20. Ng4 {[%clk 0:01:20.1]} 20... Qf8 {[%clk 0:01:21]}
21. a4 {[%clk 0:01:04.1]} 21... bxa4 {[%clk 0:01:18]} 22. Qd4+ {[%clk
0:00:56.5]} 22... f6 {[%clk 0:01:14.2]} 23. Qxa4 {[%clk 0:00:47.4]} 23... h5
{[%clk 0:01:13]} 24. Ne3 {[%clk 0:00:41.7]} 24... Nxe3 {[%clk 0:01:03.3]} 25.
Rxe3 {[%clk 0:00:36.4]} 25... Rxd1 {[%clk 0:01:00.7]} 26. Qxd1 {[%clk 0:00:36]}
26... e5 {[%clk 0:00:53.1]} 27. Rd3 {[%clk 0:00:30.7]} 27... Re7 {[%clk
0:00:50.9]} 28. Rd6 {[%clk 0:00:28.3]} 28... Qe8 {[%clk 0:00:43.2]} 29. Bxa6
{[%clk 0:00:24.8]} 29... Ba8 {[%clk 0:00:38.8]} 30. Bf1 {[%clk 0:00:23.1]} 30...
Qb8 {[%clk 0:00:37.5]} 31. Rd8 {[%clk 0:00:20.9]} 31... Qb7 {[%clk 0:00:36]} 32.
Qd6 {[%clk 0:00:20.2]} 32... Rf7 {[%clk 0:00:33.2]} 33. b4 {[%clk 0:00:17.3]}
33... Qe4 {[%clk 0:00:21.9]} 34. c4 {[%clk 0:00:11.7]} 34... Bb7 {[%clk
0:00:22.4]} 35. c5 {[%clk 0:00:10.2]} 35... Qxb4 {[%clk 0:00:20.5]} 36. Rb8
{[%clk 0:00:08.7]} 36... Qe4 {[%clk 0:00:19.7]} 37. Qd8 {[%clk 0:00:07.8]} 37...
Kh6 {[%clk 0:00:18.3]} 38. Qh8+ {[%clk 0:00:05.8]} 38... Kg5 {[%clk 0:00:17.3]}
39. Rg8 {[%clk 0:00:05.4]} 39... Rd7 {[%clk 0:00:15.2]} 40. h4+ {[%clk
0:00:03.1]} 40... Qxh4 {[%clk 0:00:14.2]} 41. Rf8 {[%clk 0:00:02]} 41... Kf5
{[%clk 0:00:13.4]} 0-1

[Event "*** Titled Tuesday Blitz"]
[Site "Chess.com"]
[Date "2020.10.27"]
[Round "2"]
[White "Ze-Pequeno"]
[Black "ARMQUEEN"]
[Result "1-0"]
[WhiteElo "2306"]
[BlackElo "2489"]
[TimeControl "180+1"]
[EndTime "10:18:22 PDT"]
[Termination "Ze-Pequeno won by resignation"]

1. e4 {[%clk 0:03:00.9]} 1... c5 {[%clk 0:02:59.7]} 2. Nf3 {[%clk 0:03:00.7]}
2... Nc6 {[%clk 0:03:00.4]} 3. d4 {[%clk 0:03:00.8]} 3... cxd4 {[%clk
0:03:01.3]} 4. Nxd4 {[%clk 0:03:01.4]} 4... g6 {[%clk 0:03:01.9]} 5. c4 {[%clk
0:03:01.1]} 5... Nf6 {[%clk 0:02:59.7]} 6. Nc3 {[%clk 0:03:00.8]} 6... Nxd4
{[%clk 0:02:59.8]} 7. Qxd4 {[%clk 0:03:00.5]} 7... Bg7 {[%clk 0:02:59.8]} 8. Be3
{[%clk 0:03:01]} 8... O-O {[%clk 0:02:54]} 9. e5 {[%clk 0:02:47.7]} 9... Ne8
{[%clk 0:02:47.9]} 10. Be2 {[%clk 0:02:42.7]} 10... d6 {[%clk 0:02:36.3]} 11. f4
{[%clk 0:02:37]} 11... Nc7 {[%clk 0:02:19.3]} 12. O-O-O {[%clk 0:02:28.4]} 12...
Ne6 {[%clk 0:02:14.9]} 13. Qe4 {[%clk 0:02:18.6]} 13... Qa5 {[%clk 0:02:10.9]}
14. Qd5 {[%clk 0:01:34.8]} 14... Qb4 {[%clk 0:02:02.4]} 15. a3 {[%clk
0:01:01.5]} 15... Qb3 {[%clk 0:01:52.1]} 16. c5 {[%clk 0:00:59.8]} 16... Qxd5
{[%clk 0:01:51.2]} 17. Nxd5 {[%clk 0:01:00.1]} 17... dxe5 {[%clk 0:01:47.3]} 18.
Nxe7+ {[%clk 0:00:59.3]} 18... Kh8 {[%clk 0:01:47.5]} 19. fxe5 {[%clk
0:00:55.2]} 19... Bxe5 {[%clk 0:01:47]} 20. b4 {[%clk 0:00:43.5]} 20... Re8
{[%clk 0:01:42.4]} 21. Nxc8 {[%clk 0:00:34.1]} 21... Raxc8 {[%clk 0:01:41.1]}
22. Kb1 {[%clk 0:00:33.3]} 22... Bg7 {[%clk 0:01:37.3]} 23. Bb5 {[%clk
0:00:32.7]} 23... Re7 {[%clk 0:01:25.1]} 24. Rd7 {[%clk 0:00:32.5]} 24... Rxd7
{[%clk 0:01:24.6]} 25. Bxd7 {[%clk 0:00:32.2]} 25... Rd8 {[%clk 0:01:25]} 26.
Bxe6 {[%clk 0:00:32.3]} 26... fxe6 {[%clk 0:01:25.3]} 27. Kc2 {[%clk 0:00:32.8]}
27... Kg8 {[%clk 0:01:24.8]} 28. Rd1 {[%clk 0:00:32]} 28... Rxd1 {[%clk
0:01:23.1]} 29. Kxd1 {[%clk 0:00:32.4]} 29... Kf7 {[%clk 0:01:23.8]} 30. Kc2
{[%clk 0:00:32.1]} 30... Ke7 {[%clk 0:01:23]} 31. Kd3 {[%clk 0:00:32.3]} 31...
Bb2 {[%clk 0:01:22.7]} 32. a4 {[%clk 0:00:31.9]} 32... Kd7 {[%clk 0:01:23]} 33.
Kc4 {[%clk 0:00:31.8]} 33... h5 {[%clk 0:01:17.9]} 34. b5 {[%clk 0:00:31.6]}
34... Be5 {[%clk 0:01:15.5]} 35. h3 {[%clk 0:00:31.6]} 35... Bf6 {[%clk
0:01:14.2]} 36. Kd3 {[%clk 0:00:29.2]} 36... e5 {[%clk 0:01:13.5]} 37. Ke4
{[%clk 0:00:26.3]} 37... a6 {[%clk 0:01:11.4]} 38. Kd5 {[%clk 0:00:24.6]} 38...
axb5 {[%clk 0:01:10.8]} 39. axb5 {[%clk 0:00:25.5]} 39... Bg7 {[%clk 0:01:08.5]}
40. c6+ {[%clk 0:00:23.9]} 40... bxc6+ {[%clk 0:01:08.8]} 41. bxc6+ {[%clk
0:00:24.8]} 41... Kc7 {[%clk 0:01:09.2]} 42. Ke6 {[%clk 0:00:24]} 42... Kxc6
{[%clk 0:01:08.9]} 43. Kf7 {[%clk 0:00:24.3]} 43... Bh8 {[%clk 0:01:07.4]} 44.
Kxg6 {[%clk 0:00:24.5]} 44... Kd5 {[%clk 0:01:06.8]} 45. Kf5 {[%clk 0:00:22.9]}
45... Bg7 {[%clk 0:01:06.2]} 46. g4 {[%clk 0:00:20.4]} 46... hxg4 {[%clk
0:01:05.7]} 47. hxg4 {[%clk 0:00:21.3]} 47... Kc4 {[%clk 0:01:03.4]} 48. Ke4
{[%clk 0:00:20.8]} 48... Kc3 {[%clk 0:01:01.9]} 49. Bf2 {[%clk 0:00:19]} 49...
Kd2 {[%clk 0:01:01.8]} 50. Bg3 {[%clk 0:00:18.9]} 50... Ke2 {[%clk 0:01:01.6]}
51. Bxe5 {[%clk 0:00:19.3]} 51... Bh6 {[%clk 0:01:00.2]} 52. Bf4 {[%clk
0:00:19.2]} 52... Bg7 {[%clk 0:00:59.9]} 53. g5 {[%clk 0:00:19.5]} 53... Kf2
{[%clk 0:00:59.3]} 54. g6 {[%clk 0:00:18.5]} 54... Kg2 {[%clk 0:00:59.5]} 55.
Kf5 {[%clk 0:00:17.6]} 55... Kh3 {[%clk 0:00:57.1]} 56. Bg5 {[%clk 0:00:17.4]}
56... Kg3 {[%clk 0:00:56.7]} 57. Ke6 {[%clk 0:00:17.2]} 57... Kg4 {[%clk
0:00:56]} 58. Kf7 {[%clk 0:00:17.6]} 1-0

[Event "*** Titled Tuesday Blitz"]
[Site "Chess.com"]
[Date "2020.10.27"]
[Round "2"]
[White "GameOverBro"]
[Black "Smile2005"]
[Result "1-0"]
[WhiteElo "2514"]
[BlackElo "2296"]
[TimeControl "180+1"]
[EndTime "10:18:24 PDT"]
[Termination "GameOverBro won on time"]

1. e4 {[%clk 0:02:32.8]} 1... c6 {[%clk 0:02:57.7]} 2. Nc3 {[%clk 0:02:32.1]}
2... d5 {[%clk 0:02:57.6]} 3. Nf3 {[%clk 0:02:32.7]} 3... Bg4 {[%clk 0:02:56.8]}
4. h3 {[%clk 0:02:32.3]} 4... Bxf3 {[%clk 0:02:56.4]} 5. Qxf3 {[%clk 0:02:33.2]}
5... e6 {[%clk 0:02:56.4]} 6. a3 {[%clk 0:02:33.8]} 6... g6 {[%clk 0:02:55.7]}
7. d3 {[%clk 0:02:34.4]} 7... Bg7 {[%clk 0:02:55.7]} 8. Qg3 {[%clk 0:02:34.7]}
8... Ne7 {[%clk 0:02:55.7]} 9. Be2 {[%clk 0:02:34.6]} 9... O-O {[%clk
0:02:56.3]} 10. O-O {[%clk 0:02:34.8]} 10... Nd7 {[%clk 0:02:56.4]} 11. f4
{[%clk 0:02:35]} 11... c5 {[%clk 0:02:49.6]} 12. f5 {[%clk 0:02:34.7]} 12...
exf5 {[%clk 0:02:45]} 13. exd5 {[%clk 0:02:25.5]} 13... Nf6 {[%clk 0:02:36.7]}
14. d6 {[%clk 0:02:13.8]} 14... Nc8 {[%clk 0:02:25.8]} 15. Bf4 {[%clk
0:02:11.7]} 15... Ne8 {[%clk 0:02:25.2]} 16. Nb5 {[%clk 0:02:05.7]} 16... a6
{[%clk 0:02:12.7]} 17. Nc7 {[%clk 0:02:04]} 17... Ra7 {[%clk 0:02:12.6]} 18.
Nxe8 {[%clk 0:01:59.6]} 18... Rxe8 {[%clk 0:02:11.6]} 19. Bf3 {[%clk 0:01:56.7]}
19... Bxb2 {[%clk 0:02:01.7]} 20. Rab1 {[%clk 0:01:56.3]} 20... Bd4+ {[%clk
0:02:01.2]} 21. Kh1 {[%clk 0:01:51]} 21... b5 {[%clk 0:01:54.3]} 22. c4 {[%clk
0:01:39.1]} 22... Qb6 {[%clk 0:01:32.4]} 23. cxb5 {[%clk 0:01:26.6]} 23... axb5
{[%clk 0:01:31.8]} 24. a4 {[%clk 0:01:20]} 24... b4 {[%clk 0:01:27.6]} 25. a5
{[%clk 0:01:10.7]} 25... Qxa5 {[%clk 0:01:22.8]} 26. d7 {[%clk 0:01:10.3]} 26...
Rxd7 {[%clk 0:01:20.3]} 27. Bc6 {[%clk 0:01:10.3]} 27... Rde7 {[%clk 0:01:14]}
28. Bxe8 {[%clk 0:01:09.9]} 28... Rxe8 {[%clk 0:01:14]} 29. h4 {[%clk
0:01:09.7]} 29... h5 {[%clk 0:00:59.8]} 30. Bc7 {[%clk 0:01:08]} 30... Qb5
{[%clk 0:00:56.8]} 31. Rxf5 {[%clk 0:01:04.1]} 31... Re3 {[%clk 0:00:25.4]} 32.
Qg5 {[%clk 0:00:48.4]} 32... Qd7 {[%clk 0:00:18.8]} 33. Bf4 {[%clk 0:00:17.2]}
33... Qxf5 {[%clk 0:00:16.3]} 34. Bxe3 {[%clk 0:00:17.5]} 34... Qxd3 {[%clk
0:00:14.1]} 35. Re1 {[%clk 0:00:16]} 35... Bxe3 {[%clk 0:00:11]} 36. Rxe3 {[%clk
0:00:16.9]} 36... Qd1+ {[%clk 0:00:11]} 37. Kh2 {[%clk 0:00:16.1]} 37... Qd6+
{[%clk 0:00:10.5]} 38. g3 {[%clk 0:00:14.8]} 38... Nb6 {[%clk 0:00:08.4]} 39.
Re5 {[%clk 0:00:10.6]} 39... c4 {[%clk 0:00:03.6]} 40. Qf4 {[%clk 0:00:09.3]}
40... Qd7 {[%clk 0:00:01.3]} 41. Qe3 {[%clk 0:00:05.8]} 1-0

[Event "*** Titled Tuesday Blitz"]
[Site "Chess.com"]
[Date "2020.10.27"]
[Round "2"]
[White "MateusViageiro"]
[Black "Azatic"]
[Result "1-0"]
[WhiteElo "2362"]
[BlackElo "2651"]
[TimeControl "180+1"]
[EndTime "10:18:28 PDT"]
[Termination "MateusViageiro won by resignation"]

1. e4 {[%clk 0:03:00.9]} 1... c5 {[%clk 0:02:59.9]} 2. Nf3 {[%clk 0:03:00.7]}
2... e6 {[%clk 0:02:59.7]} 3. d4 {[%clk 0:03:01.2]} 3... cxd4 {[%clk 0:03:00.6]}
4. Nxd4 {[%clk 0:03:01.8]} 4... a6 {[%clk 0:03:00.8]} 5. Nc3 {[%clk 0:03:02.4]}
5... Qc7 {[%clk 0:03:01.1]} 6. a3 {[%clk 0:03:02]} 6... Nf6 {[%clk 0:03:01.6]}
7. Bd3 {[%clk 0:03:02.1]} 7... Be7 {[%clk 0:03:02]} 8. O-O {[%clk 0:03:01.2]}
8... O-O {[%clk 0:03:01.7]} 9. Be3 {[%clk 0:03:01.4]} 9... d6 {[%clk 0:03:01.2]}
10. f4 {[%clk 0:03:01.7]} 10... Nc6 {[%clk 0:03:01.1]} 11. Nb3 {[%clk 0:02:59]}
11... e5 {[%clk 0:02:57.1]} 12. f5 {[%clk 0:02:59]} 12... Rd8 {[%clk 0:02:52.1]}
13. Qf3 {[%clk 0:02:58]} 13... Na5 {[%clk 0:02:23.7]} 14. Nxa5 {[%clk
0:02:46.1]} 14... Qxa5 {[%clk 0:02:24.6]} 15. g4 {[%clk 0:02:44.8]} 15... d5
{[%clk 0:02:24.4]} 16. exd5 {[%clk 0:02:33.7]} 16... Nxd5 {[%clk 0:02:24]} 17.
b4 {[%clk 0:02:31.5]} 17... Nxb4 {[%clk 0:02:18]} 18. axb4 {[%clk 0:02:30.6]}
18... Qxb4 {[%clk 0:02:18.9]} 19. Nd5 {[%clk 0:02:28.5]} 19... Qd6 {[%clk
0:02:16.5]} 20. Nxe7+ {[%clk 0:02:26.1]} 20... Qxe7 {[%clk 0:02:17.4]} 21. f6
{[%clk 0:02:21.9]} 21... Qe6 {[%clk 0:02:07.6]} 22. g5 {[%clk 0:02:06.2]} 22...
g6 {[%clk 0:02:01.4]} 23. Ra4 {[%clk 0:02:00.2]} 23... Bd7 {[%clk 0:01:52.5]}
24. Rh4 {[%clk 0:01:59.7]} 24... h5 {[%clk 0:01:30]} 25. gxh6 {[%clk 0:01:41.2]}
25... Kh7 {[%clk 0:01:28.9]} 26. Be4 {[%clk 0:01:37.6]} 26... Rac8 {[%clk
0:01:24.1]} 27. Bd5 {[%clk 0:01:35.6]} 27... Qe8 {[%clk 0:01:14.2]} 28. c4
{[%clk 0:01:30.1]} 28... Bc6 {[%clk 0:01:12.8]} 29. Rd1 {[%clk 0:01:26.3]} 29...
Bxd5 {[%clk 0:01:07.5]} 30. cxd5 {[%clk 0:01:26.5]} 30... Rc2 {[%clk 0:01:03.2]}
31. Rg4 {[%clk 0:01:21.2]} 31... Qb5 {[%clk 0:00:52.8]} 32. Rg2 {[%clk
0:01:16.8]} 32... Rc3 {[%clk 0:00:42.7]} 33. Qe4 {[%clk 0:01:11.7]} 33... Rdc8
{[%clk 0:00:23.8]} 34. Qxe5 {[%clk 0:01:03.9]} 34... Rb3 {[%clk 0:00:17]} 35.
Qe7 {[%clk 0:00:52.8]} 35... Qe8 {[%clk 0:00:10.7]} 36. Re2 {[%clk 0:00:45.6]}
36... Qg8 {[%clk 0:00:10]} 37. d6 {[%clk 0:00:44.6]} 37... Rbc3 {[%clk
0:00:07.2]} 38. d7 {[%clk 0:00:44.3]} 38... Rd8 {[%clk 0:00:07.5]} 39. Bb6
{[%clk 0:00:42.3]} 39... Rcc8 {[%clk 0:00:05.6]} 40. dxc8=Q {[%clk 0:00:35.9]}
40... Rxd1+ {[%clk 0:00:04.8]} 41. Kf2 {[%clk 0:00:32.8]} 41... Qxc8 {[%clk
0:00:05]} 42. Qxf7+ {[%clk 0:00:32.9]} 42... Kxh6 {[%clk 0:00:05.5]} 43. Qg7+
{[%clk 0:00:27.5]} 43... Kg5 {[%clk 0:00:04.5]} 44. Be3+ {[%clk 0:00:24.1]}
44... Kf5 {[%clk 0:00:04.4]} 45. f7 {[%clk 0:00:21.7]} 45... Rf1+ {[%clk
0:00:04.2]} 46. Kxf1 {[%clk 0:00:20.7]} 46... Qc1+ {[%clk 0:00:05.1]} 47. Bxc1
{[%clk 0:00:18.9]} 1-0

[Event "*** Titled Tuesday Blitz"]
[Site "Chess.com"]
[Date "2020.10.27"]
[Round "2"]
[White "ShahMatKanal"]
[Black "Quattroporte300"]
[Result "1-0"]
[WhiteElo "2474"]
[BlackElo "2254"]
[TimeControl "180+1"]
[EndTime "10:18:28 PDT"]
[Termination "ShahMatKanal won by resignation"]

1. d4 {[%clk 0:03:00.9]} 1... Nf6 {[%clk 0:02:57.2]} 2. c4 {[%clk 0:02:58.9]}
2... d6 {[%clk 0:02:56.2]} 3. Nf3 {[%clk 0:02:57]} 3... Nbd7 {[%clk 0:02:56.3]}
4. Nc3 {[%clk 0:02:53.5]} 4... e5 {[%clk 0:02:52.2]} 5. e4 {[%clk 0:02:52.1]}
5... c6 {[%clk 0:02:41]} 6. Be2 {[%clk 0:02:48.4]} 6... Be7 {[%clk 0:02:33.9]}
7. O-O {[%clk 0:02:47.9]} 7... O-O {[%clk 0:02:30.5]} 8. Re1 {[%clk 0:02:48]}
8... a6 {[%clk 0:02:23.6]} 9. d5 {[%clk 0:02:25.1]} 9... cxd5 {[%clk 0:02:19.6]}
10. cxd5 {[%clk 0:02:24.8]} 10... b5 {[%clk 0:02:15.9]} 11. Bf1 {[%clk
0:02:11.1]} 11... Bb7 {[%clk 0:02:12.9]} 12. a3 {[%clk 0:01:57.8]} 12... Rc8
{[%clk 0:02:12.5]} 13. Be3 {[%clk 0:01:45.9]} 13... Ng4 {[%clk 0:02:05.6]} 14.
Bd2 {[%clk 0:01:41.2]} 14... Qb6 {[%clk 0:01:59.3]} 15. Qe2 {[%clk 0:01:36.9]}
15... f5 {[%clk 0:01:48.4]} 16. h3 {[%clk 0:01:25.4]} 16... fxe4 {[%clk
0:01:36.6]} 17. hxg4 {[%clk 0:00:46]} 17... exf3 {[%clk 0:01:35.6]} 18. gxf3
{[%clk 0:00:46.9]} 18... Rf7 {[%clk 0:01:18]} 19. Rad1 {[%clk 0:00:38.9]} 19...
Rcf8 {[%clk 0:01:17.6]} 20. Bg2 {[%clk 0:00:38.7]} 20... Qc7 {[%clk 0:01:01.4]}
21. Be3 {[%clk 0:00:36.2]} 21... Nb6 {[%clk 0:00:59.8]} 22. Rd3 {[%clk 0:00:20]}
22... Nc4 {[%clk 0:00:58.5]} 23. Bc1 {[%clk 0:00:20.3]} 23... Qd7 {[%clk
0:00:42.8]} 24. Red1 {[%clk 0:00:20.1]} 24... Bd8 {[%clk 0:00:42.2]} 25. b3
{[%clk 0:00:18.5]} 25... Nb6 {[%clk 0:00:39.6]} 26. Be3 {[%clk 0:00:18.4]} 26...
h6 {[%clk 0:00:35.7]} 27. Na2 {[%clk 0:00:18.1]} 27... Qc8 {[%clk 0:00:32.7]}
28. Nb4 {[%clk 0:00:18.1]} 28... Qa8 {[%clk 0:00:32.6]} 29. Nc6 {[%clk
0:00:18.1]} 29... Bc7 {[%clk 0:00:25.8]} 30. Rc1 {[%clk 0:00:14.9]} 30... Nxd5
{[%clk 0:00:20.3]} 31. Rxd5 {[%clk 0:00:12.2]} 31... Bxc6 {[%clk 0:00:20.7]} 32.
Rd3 {[%clk 0:00:10.8]} 32... Bb8 {[%clk 0:00:16.8]} 33. Bd2 {[%clk 0:00:09.2]}
33... d5 {[%clk 0:00:15.5]} 34. Rdc3 {[%clk 0:00:08.5]} 34... Rf6 {[%clk
0:00:15.6]} 35. f4 {[%clk 0:00:07.1]} 35... e4 {[%clk 0:00:14.1]} 36. f5 {[%clk
0:00:06.2]} 36... Be5 {[%clk 0:00:13.2]} 37. Rc5 {[%clk 0:00:05.5]} 37... Qe8
{[%clk 0:00:13.2]} 38. Bb4 {[%clk 0:00:03.8]} 38... Bd6 {[%clk 0:00:13.2]} 39.
Rxc6 {[%clk 0:00:03.3]} 39... Bxb4 {[%clk 0:00:10.9]} 40. Rxf6 {[%clk
0:00:04.2]} 40... Rxf6 {[%clk 0:00:10.5]} 41. axb4 {[%clk 0:00:04.7]} 41... Qe7
{[%clk 0:00:10.6]} 42. Rc5 {[%clk 0:00:04.3]} 42... a5 {[%clk 0:00:09.3]} 43.
Rxd5 {[%clk 0:00:04]} 43... axb4 {[%clk 0:00:08.8]} 44. Qxe4 {[%clk 0:00:04.3]}
44... Qxe4 {[%clk 0:00:05.9]} 45. Bxe4 {[%clk 0:00:05.2]} 45... Ra6 {[%clk
0:00:06]} 46. Rxb5 {[%clk 0:00:05]} 1-0